bitfinex/quotes_BTCUSD_20240617
["timestamp","ask_amount","ask_price","bid_price","bid_amount"]
[1718657641828,0.13426738,66467.0,66466.0,0.11551837]
[1718657646357,0.13404351,66467.0,66466.0,0.11551837]
[1718657646779,0.13404351,66467.0,66466.0,0.06582688]
[1718657647320,0.13404351,66467.0,66466.0,0.07515568]
[1718657647673,0.13404351,66467.0,66466.0,0.06582688]
[1718657654190,0.13404351,66467.0,66466.0,0.07515364]
[1718657655043,0.13404351,66467.0,66466.0,0.06582688]
[1718657656006,0.13404351,66467.0,66466.0,0.07515364]
[1718657657499,0.02103609,66467.0,66466.0,0.06582688]
[1718657657876,0.02103609,66467.0,66466.0,0.10618957]
[1718657658305,0.02103609,66467.0,66466.0,0.11551633]
[1718657658521,0.06610307,66467.0,66466.0,0.11551633]
[1718657658961,0.07513916,66467.0,66466.0,0.11551633]
[1718657659149,0.15296704,66467.0,66466.0,0.11551633]
[1718657659352,0.15296704,66467.0,66466.0,0.06582688]
[1718657659564,0.03007218,66467.0,66466.0,0.06582688]
[1718657660725,0.14687035,66467.0,66466.0,0.07515364]
[1718657662623,0.14687035,66467.0,66466.0,0.22788252]
[1718657662826,0.14687035,66467.0,66466.0,0.22881752]
[1718657663541,0.29732035,66467.0,66466.0,0.05608864]
[1718657663839,0.14687035,66467.0,66466.0,0.07608864]
[1718657664551,0.14687035,66467.0,66466.0,0.06676188]
[1718657664875,0.14687035,66467.0,66466.0,0.06668465]
[1718657665947,0.12879817,66467.0,66466.0,0.06668465]
[1718657666333,0.12879817,66467.0,66466.0,0.10713312]
[1718657666567,0.12879817,66467.0,66466.0,0.11645988]
[1718657667910,0.12879817,66467.0,66466.0,0.07601141]
[1718657668304,0.12879817,66467.0,66466.0,0.06668465]
[1718657668513,0.46988996,66467.0,66466.0,0.06668465]
[1718657669386,0.45853662,66467.0,66466.0,0.06668465]
[1718657670257,0.3682473,66467.0,66466.0,0.06668465]
[1718657670889,0.4810861,66467.0,66466.0,0.06668465]
[1718657671177,0.36820174,66467.0,66466.0,0.06668465]
[1718657674711,0.48104054,66467.0,66466.0,0.06668465]
[1718657675060,0.36820174,66467.0,66466.0,0.06668465]
[1718657675207,0.48110681,66467.0,66466.0,0.06668465]
[1718657675421,0.36820174,66467.0,66466.0,0.06668465]
[1718657677209,1.6635613,66467.0,66466.0,0.04668465]
[1718657677412,1.8525911,66467.0,66466.0,0.04668465]
[1718657677608,1.52815474,66467.0,66466.0,0.04668465]
[1718657678249,1.55169048,66467.0,66466.0,0.04668465]
[1718657678470,1.52815474,66467.0,66466.0,0.04668465]
[1718657679069,1.55169053,66467.0,66466.0,0.04668465]
[1718657679826,1.52815474,66467.0,66466.0,0.04668465]
[1718657680419,1.83755574,66467.0,66466.0,0.001935]
[1718657680619,2.09709747,66467.0,66466.0,0.001935]
[1718657680855,2.21717125,66467.0,66466.0,0.001935]
[1718657681275,2.68261269,66467.0,66466.0,0.001935]
[1718657681409,2.97337371,66467.0,66466.0,0.001935]
[1718657681613,3.02233622,66467.0,66466.0,0.001935]
[1718657681813,3.01533622,66467.0,66466.0,0.000935]
[1718657682044,2.96310488,66467.0,66466.0,0.000935]
[1718657682235,3.12681744,66467.0,66466.0,0.000935]
[1718657682440,3.97899884,66467.0,66466.0,0.000935]
[1718657682637,3.14981744,66467.0,66466.0,0.000935]
[1718657683367,3.89981744,66467.0,66466.0,0.000935]
[1718657683530,3.88881744,66467.0,66466.0,0.000935]
[1718657683727,3.14781744,66467.0,66466.0,0.001935]
[1718657684476,3.29090421,66467.0,66466.0,0.000935]
[1718657684865,3.30490421,66467.0,66466.0,0.001935]
[1718657685139,3.39100421,66467.0,66466.0,0.001935]
[1718657685652,3.41185757,66467.0,66466.0,0.001935]
[1718657685859,3.85705824,66467.0,66466.0,0.001935]
[1718657686058,3.87105824,66467.0,66466.0,0.001935]
[1718657687961,3.85705824,66467.0,66466.0,0.001935]
[1718657689248,3.80309573,66467.0,66466.0,0.001935]
[1718657689479,3.85237107,66467.0,66466.0,0.001935]
[1718657689686,3.86637107,66467.0,66466.0,0.001935]
[1718657690110,3.91111997,66467.0,66466.0,0.001935]
[1718657690464,1.053342,66455.0,66454.0,0.04568465]
[1718657690677,0.300978,66450.0,66449.0,0.02]
[1718657690874,1.31231501,66450.0,66449.0,0.02939105]
[1718657691101,1.31231501,66450.0,66449.0,0.02]
[1718657691325,1.19978348,66450.0,66449.0,0.02]
[1718657692243,0.451486,66447.0,66446.0,0.01]
[1718657692470,0.4515,66445.0,66444.0,0.09593072]
[1718657692858,0.7525,66445.0,66444.0,0.10532428]
[1718657693455,0.4515,66445.0,66444.0,0.10532428]
[1718657693923,0.7565,66445.0,66444.0,0.10532428]
[1718657694277,0.7615,66445.0,66444.0,0.02939356]
[1718657694475,1.0625,66445.0,66444.0,0.00939356]
[1718657694679,1.79487566,66445.0,66444.0,0.00939356]
[1718657694877,1.59387566,66445.0,66444.0,0.00939356]
[1718657695083,1.053517,66444.0,66443.0,0.3369]
[1718657695311,1.78349096,66444.0,66443.0,0.3369]
[1718657696238,1.81692179,66444.0,66443.0,0.3369]
[1718657696447,1.70642349,66444.0,66443.0,0.3369]
[1718657697051,1.61274088,66444.0,66443.0,0.3369]
[1718657697289,1.71099161,66444.0,66443.0,0.3369]
[1718657697419,1.80095371,66444.0,66443.0,0.3369]
[1718657697623,1.41384871,66444.0,66443.0,0.3569]
[1718657697831,1.49994871,66444.0,66443.0,0.3569]
[1718657698035,1.49994871,66444.0,66443.0,0.36630735]
[1718657698297,1.49994871,66444.0,66443.0,0.34630735]
[1718657698495,1.49994871,66444.0,66443.0,0.3369]
[1718657698696,1.49994871,66444.0,66443.0,0.3569]
[1718657698908,1.50020957,66444.0,66443.0,0.3569]
[1718657699306,1.41027789,66444.0,66443.0,0.3369]
[1718657699506,1.41027789,66444.0,66443.0,0.3569]
[1718657700069,1.31175225,66444.0,66443.0,0.3569]
[1718657700272,1.410151,66444.0,66443.0,0.3369]
[1718657700858,1.711156,66444.0,66443.0,0.3369]
[1718657701090,1.410151,66444.0,66443.0,0.3369]
[1718657701520,1.410151,66444.0,66443.0,0.34630735]
[1718657701694,1.410151,66444.0,66443.0,0.3369]
[1718657702103,1.711156,66444.0,66443.0,0.3369]
[1718657702303,1.07644158,66444.0,66443.0,0.3569]
[1718657702522,1.07644158,66444.0,66443.0,0.3369]
[1718657702724,1.07644158,66444.0,66443.0,0.34630735]
[1718657702887,1.07637754,66444.0,66443.0,0.34630735]
[1718657703095,1.14380254,66444.0,66443.0,0.3369]
[1718657703292,1.07637754,66444.0,66443.0,0.34630735]
[1718657703698,1.14380233,66444.0,66443.0,0.34630735]
[1718657704103,1.14380233,66444.0,66443.0,0.3369]
[1718657704313,1.07637754,66444.0,66443.0,0.3369]
[1718657704550,0.20433471,66444.0,66443.0,0.36630735]
[1718657704749,0.006,66444.0,66443.0,0.70582288]
[1718657704950,0.006,66444.0,66443.0,0.55473204]
[1718657705898,0.002,66444.0,66443.0,0.55473204]
[1718657706249,0.003,66444.0,66443.0,0.55673204]
[1718657706678,0.001,66444.0,66443.0,0.55673204]
[1718657706997,0.003,66444.0,66443.0,0.56673204]
[1718657707928,0.003,66444.0,66443.0,1.10434504]
[1718657708126,0.001,66444.0,66443.0,1.10434504]
[1718657709185,0.001,66444.0,66443.0,1.40535404]
[1718657709857,0.04494711,66460.0,66459.0,0.3637]
[1718657710081,0.04494711,66460.0,66459.0,0.55279888]
[1718657710082,0.09651799,66460.0,66459.0,0.55279888]
[1718657710292,0.09651799,66460.0,66459.0,0.56216982]
[1718657710508,0.14494711,66463.0,66461.0,0.02]
[1718657710713,0.04494711,66463.0,66462.0,0.02]
[1718657710953,0.14243028,66463.0,66462.0,0.07452441]
[1718657711162,0.19748317,66463.0,66462.0,0.08389535]
[1718657711967,0.19748317,66463.0,66462.0,0.42759535]
[1718657712934,0.19748317,66463.0,66462.0,0.42859535]
[1718657713334,0.09748317,66463.0,66462.0,0.42859535]
[1718657714180,0.1,66464.0,66463.0,0.02]
[1718657714340,0.09941008,66464.0,66463.0,0.02]
[1718657714573,0.19941008,66464.0,66463.0,0.02937094]
[1718657714912,0.09941008,66464.0,66463.0,0.09124036]
[1718657715121,0.04495642,66466.0,66465.0,0.02]
[1718657715324,0.04495642,66466.0,66465.0,0.3637]
[1718657715531,0.04495642,66466.0,66465.0,0.66688388]
[1718657715532,0.09940944,66466.0,66465.0,0.66688388]
[1718657715736,0.00085,66467.0,66466.0,0.524152]
[1718657715953,0.00085,66467.0,66466.0,1.06388588]
[1718657716159,0.00085,66467.0,66466.0,1.07322969]
[1718657716698,0.00085,66467.0,66466.0,1.37413469]
[1718657717515,0.00285,66467.0,66466.0,1.39413469]
[1718657717721,0.00285,66467.0,66466.0,1.44349812]
[1718657718361,0.00285,66467.0,66466.0,1.84640312]
[1718657718581,0.00085,66471.0,66470.0,0.782217]
[1718657718783,0.00085,66471.0,66470.0,1.66563288]
[1718657718982,0.00085,66471.0,66470.0,1.67490041]
[1718657719136,0.00085,66471.0,66470.0,1.71127041]
[1718657719347,0.00085,66471.0,66470.0,1.10949641]
[1718657720160,0.00740346,66472.0,66471.0,0.803524]
[1718657720386,0.00740346,66472.0,66471.0,0.99551438]
[1718657721759,0.00740346,66472.0,66471.0,0.53419038]
[1718657721960,0.00740346,66472.0,66471.0,0.7465008]
[1718657722165,0.00740346,66472.0,66471.0,1.0473838]
[1718657722316,0.00740346,66472.0,66471.0,0.7465008]
[1718657722514,0.00840346,66472.0,66471.0,0.7575008]
[1718657722898,0.00740346,66472.0,66471.0,0.7465008]
[1718657723094,0.00740346,66472.0,66471.0,0.5960598]
[1718657723317,0.00840346,66472.0,66471.0,0.6070598]
[1718657723931,0.00840346,66472.0,66471.0,0.6180598]
[1718657724341,0.00840346,66472.0,66471.0,0.6070598]
[1718657724558,0.00840346,66472.0,66471.0,0.7575008]
[1718657724727,0.00840346,66472.0,66471.0,0.7685008]
[1718657725483,0.00840346,66472.0,66471.0,0.6180598]
[1718657727508,0.00840346,66472.0,66471.0,0.6189948]
[1718657727891,0.00840346,66472.0,66471.0,0.6289948]
[1718657729156,0.00840346,66472.0,66471.0,0.6189948]
[1718657730482,0.00840346,66472.0,66471.0,0.6289948]
[1718657732289,0.00840346,66472.0,66471.0,1.0803188]
[1718657732415,0.00840346,66472.0,66471.0,0.7794358]
[1718657734070,0.00840346,66472.0,66471.0,1.9925848]
[1718657736087,0.00840346,66472.0,66471.0,1.9815848]
[1718657736531,0.00840346,66472.0,66471.0,1.9955848]
[1718657736734,0.00740346,66472.0,66471.0,1.9845848]
[1718657737144,0.00740346,66472.0,66471.0,0.9939358]
[1718657737363,0.00740346,66472.0,66471.0,1.0800358]
[1718657737537,0.00740346,66472.0,66471.0,1.6818018]
[1718657737745,0.00740346,66472.0,66471.0,0.56312538]
[1718657737876,0.15784246,66472.0,66471.0,0.21092538]
[1718657738308,0.45872046,66472.0,66471.0,0.19092538]
[1718657738508,0.75959846,66472.0,66471.0,0.0381965]
[1718657738799,0.75959846,66472.0,66471.0,0.0241965]
[1718657738946,0.86165275,66472.0,66471.0,0.014935]
[1718657739123,0.56077475,66472.0,66471.0,0.021935]
[1718657739553,0.10945775,66472.0,66471.0,0.041935]
[1718657739760,0.25989675,66472.0,66471.0,0.034935]
[1718657740163,0.10945775,66472.0,66471.0,0.18766388]
[1718657740446,0.00740346,66472.0,66471.0,0.21521521]
[1718657740570,0.00740346,66472.0,66471.0,0.20121521]
[1718657741001,0.00740346,66472.0,66471.0,0.20721521]
[1718657741206,0.00740346,66472.0,66471.0,0.20621521]
[1718657741569,0.00740346,66472.0,66471.0,0.21021521]
[1718657741775,0.00740346,66472.0,66471.0,0.20521521]
[1718657741985,0.00740346,66472.0,66471.0,0.21221521]
[1718657742185,0.00740346,66472.0,66471.0,0.22221521]
[1718657742612,0.00740346,66472.0,66471.0,0.20121521]
[1718657743026,0.00740346,66472.0,66471.0,0.20621521]
[1718657743787,0.00740346,66472.0,66471.0,0.21621521]
[1718657744001,0.00740346,66472.0,66471.0,0.36665621]
[1718657744202,0.00740346,66472.0,66471.0,0.36065621]
[1718657744329,0.00740346,66472.0,66471.0,0.37065621]
[1718657744539,0.00740346,66472.0,66471.0,0.36165621]
[1718657744738,0.00740346,66472.0,66471.0,0.66253921]
[1718657744938,0.00740346,66472.0,66471.0,0.97242221]
[1718657745208,0.00740346,66472.0,66471.0,0.67253921]
[1718657745413,0.00740346,66472.0,66471.0,0.37165621]
[1718657745562,0.00740346,66472.0,66471.0,0.38465621]
[1718657745821,0.00740346,66472.0,66471.0,0.37465621]
[1718657745990,0.00740346,66472.0,66471.0,0.96342221]
[1718657746211,0.00740346,66472.0,66471.0,0.97742221]
[1718657747248,0.00740346,66472.0,66471.0,0.67653921]
[1718657747542,0.00740346,66472.0,66471.0,0.21044882]
[1718657747876,0.00740346,66472.0,66471.0,0.19644882]
[1718657748077,0.00740346,66472.0,66471.0,0.67177282]
[1718657748709,0.00740346,66472.0,66471.0,0.21044882]
[1718657750452,0.00740346,66472.0,66471.0,0.36088982]
[1718657750862,0.00740346,66472.0,66471.0,0.3627466]
[1718657751692,0.00740346,66472.0,66471.0,0.3727466]
[1718657752039,0.00740346,66472.0,66471.0,1.1249536]
[1718657752680,0.00740346,66472.0,66471.0,1.6883536]
[1718657752877,0.00740346,66472.0,66471.0,1.7903536]
[1718657753079,0.00740346,66472.0,66471.0,1.3874706]
[1718657753292,0.07568548,66487.0,66484.0,0.01]
[1718657753492,0.50915923,66487.0,66486.0,0.02]
[1718657753757,0.60919697,66487.0,66486.0,0.03727289]
[1718657754242,0.53351149,66487.0,66486.0,0.03727289]
[1718657755081,0.53351149,66487.0,66486.0,0.0455951]
[1718657755607,0.53651149,66487.0,66486.0,0.0455951]
[1718657755825,0.53351149,66487.0,66486.0,0.0455951]
[1718657756685,0.20003774,66487.0,66486.0,0.0455951]
[1718657756918,0.20303774,66487.0,66486.0,0.0455951]
[1718657757148,0.53651145,66487.0,66486.0,0.0455951]
[1718657758201,0.53351145,66487.0,66486.0,0.02832221]
[1718657758751,0.53651145,66487.0,66486.0,0.02832221]
[1718657758917,0.53351145,66487.0,66486.0,0.02832221]
[1718657759324,0.53651145,66487.0,66486.0,0.02832221]
[1718657760299,0.53736145,66487.0,66486.0,0.02832221]
[1718657761449,0.53736145,66487.0,66486.0,0.00832221]
[1718657761450,0.53735184,66487.0,66486.0,0.00832221]
[1718657761677,0.68775684,66487.0,66486.0,0.00832221]
[1718657761811,0.53735184,66487.0,66486.0,0.02]
[1718657762625,0.53735184,66487.0,66486.0,0.03827289]
[1718657762854,0.53735184,66487.0,66486.0,0.02827628]
[1718657763053,0.53735184,66487.0,66486.0,0.02]
[1718657763635,0.53725042,66487.0,66486.0,0.02]
[1718657766584,0.53725042,66487.0,66486.0,0.02826061]
[1718657770088,0.43725042,66487.0,66486.0,0.19098949]
[1718657770233,0.54997353,66487.0,66486.0,1.10261044]
[1718657770440,0.43725042,66487.0,66486.0,1.10261044]
[1718657770642,0.00385,66487.0,66486.0,1.40342544]
[1718657771838,0.00385,66487.0,66486.0,1.11261044]
[1718657772444,0.00385,66487.0,66486.0,1.10261044]
[1718657772695,0.00385,66487.0,66486.0,0.56428844]
[1718657772895,0.00085,66487.0,66486.0,0.56428844]
[1718657773096,0.00085,66487.0,66486.0,0.18998949]
[1718657773472,0.00085,66487.0,66486.0,0.18098949]
[1718657774103,0.00085,66487.0,66486.0,0.19398949]
[1718657774302,0.00085,66487.0,66486.0,0.18098949]
[1718657774510,0.00085,66487.0,66486.0,0.28763364]
[1718657774677,0.00085,66487.0,66486.0,0.03626061]
[1718657774908,0.00085,66487.0,66486.0,0.008]
[1718657774909,1.20741071,66487.0,66486.0,0.008]
[1718657775111,1.75621789,66487.0,66486.0,0.008]
[1718657775360,0.482203,66474.0,66473.0,0.4678]
[1718657775488,0.95318348,66474.0,66473.0,0.4678]
[1718657775696,1.35480728,66474.0,66473.0,0.4678]
[1718657775900,1.65567628,66474.0,66473.0,0.47603404]
[1718657776135,1.75567628,66474.0,66473.0,0.47603404]
[1718657776556,1.06992203,66474.0,66473.0,0.47603404]
[1718657776803,1.45490391,66474.0,66473.0,0.47603404]
[1718657777127,1.45490391,66474.0,66473.0,0.47703404]
[1718657777385,1.58420391,66474.0,66473.0,0.47703404]
[1718657777845,1.58720391,66474.0,66473.0,0.47803404]
[1718657778291,1.72228437,66474.0,66473.0,0.47803404]
[1718657779281,1.72228437,66474.0,66473.0,0.47703404]
[1718657779591,1.72428437,66474.0,66473.0,0.47803404]
[1718657779793,2.32602237,66474.0,66473.0,0.01023404]
[1718657780011,1.88707291,66474.0,66473.0,0.00823404]
[1718657780205,1.053073,66472.0,66471.0,0.000935]
[1718657780443,1.63880491,66472.0,66471.0,0.000935]
[1718657781806,1.65180491,66472.0,66471.0,0.001935]
[1718657783817,1.65280491,66472.0,66471.0,0.002935]
[1718657784207,1.26782303,66472.0,66471.0,0.002935]
[1718657784644,1.60140375,66472.0,66471.0,0.002935]
[1718657785458,1.50065372,66472.0,66471.0,0.002935]
[1718657785750,1.167073,66472.0,66471.0,0.002935]
[1718657786663,2.39002156,66472.0,66471.0,0.002935]
[1718657786897,2.77475929,66472.0,66471.0,0.002935]
[1718657787110,3.75819812,66472.0,66471.0,0.002935]
[1718657787314,3.17865515,66472.0,66471.0,0.002935]
[1718657787924,3.17765515,66472.0,66471.0,0.001935]
[1718657788168,3.01194259,66472.0,66471.0,0.000935]
[1718657788381,3.01294259,66472.0,66471.0,0.001935]
[1718657788607,2.92394259,66472.0,66471.0,0.002935]
[1718657788844,2.78248556,66472.0,66471.0,0.001935]
[1718657789270,2.79348556,66472.0,66471.0,0.002935]
[1718657790044,3.04519812,66472.0,66471.0,0.001935]
[1718657790630,2.78148556,66472.0,66471.0,0.000935]
[1718657790838,2.89548556,66472.0,66471.0,0.000935]
[1718657791057,2.90948556,66472.0,66471.0,0.001]
[1718657791269,3.65548556,66472.0,66471.0,0.001]
[1718657791440,0.150488,66451.0,66448.0,0.02]
[1718657791653,0.150488,66451.0,66436.0,0.150519]
[1718657791654,0.451548,66438.0,66437.0,0.54373072]
[1718657791850,0.150518,66437.0,66436.0,0.02]
[1718657792053,0.2154,66440.0,66433.0,0.3399]
[1718657792054,0.2154,66440.0,66434.0,0.02]
[1718657792252,0.150525,66434.0,66433.0,0.3599]
[1718657792465,0.752625,66434.0,66433.0,0.3399]
[1718657792673,0.150532,66431.0,66430.0,0.22903072]
[1718657792881,0.451596,66431.0,66430.0,0.3817596]
[1718657793323,0.75266,66431.0,66430.0,0.22903072]
[1718657793496,0.75266,66431.0,66430.0,0.24903072]
[1718657793720,0.401032,66439.0,66429.0,0.000946]
[1718657793721,0.75267,66430.0,66429.0,0.000946]
[1718657794121,1.153738,66430.0,66429.0,0.000946]
[1718657795268,0.85267,66430.0,66429.0,0.000946]
[1718657795611,0.86667,66430.0,66429.0,0.001946]
[1718657796222,1.167738,66430.0,66429.0,0.001946]
[1718657796423,0.85267,66430.0,66429.0,0.000946]
[1718657796854,0.86667,66430.0,66429.0,0.000946]
[1718657797623,0.85267,66430.0,66429.0,0.000946]
[1718657798037,0.86667,66430.0,66429.0,0.001946]
[1718657798241,0.85267,66430.0,66429.0,0.000946]
[1718657798648,0.86667,66430.0,66429.0,0.001946]
[1718657799486,0.86667,66430.0,66429.0,0.021946]
[1718657799614,0.88067,66430.0,66429.0,0.021946]
[1718657800427,0.579602,66430.0,66429.0,0.021946]
[1718657800638,0.88067,66430.0,66429.0,0.001946]
[1718657800846,0.128,66430.0,66429.0,0.021946]
[1718657801074,0.014,66430.0,66429.0,0.52496255]
[1718657801273,0.1,66433.0,66432.0,0.02]
[1718657801493,0.27049189,66437.0,66436.0,0.02]
[1718657801704,0.250518,66437.0,66436.0,0.02]
[1718657801928,0.1,66437.0,66436.0,0.02]
[1718657802139,0.2,66450.0,66436.0,0.02]
[1718657802140,0.150503,66444.0,66441.0,0.02]
[1718657802341,0.1,66443.0,66441.0,0.02]
[1718657802546,0.250506,66443.0,66441.0,0.02]
[1718657802782,0.1,66443.0,66442.0,0.3605]
[1718657802991,0.1,66443.0,66442.0,0.3689582]
[1718657803406,0.1,66444.0,66443.0,0.02]
[1718657803661,0.04738856,66446.0,66442.0,0.3489582]
[1718657804073,0.04738856,66446.0,66443.0,0.00845301]
[1718657804074,1.312617,66444.0,66443.0,0.00845301]
[1718657804252,0.710607,66444.0,66443.0,0.00845301]
[1718657804389,0.150505,66443.0,66441.0,0.02]
[1718657804579,0.3154,66444.0,66432.0,0.1548]
[1718657804580,0.250507,66442.0,66439.0,0.02]
[1718657804776,0.250507,66442.0,66440.0,0.12496257]
[1718657805001,0.1,66442.0,66441.0,0.02]
[1718657805202,0.1,66442.0,66441.0,0.14496705]
[1718657805642,0.014,66444.0,66441.0,0.15341087]
[1718657805814,0.1,66447.0,66443.0,0.02]
[1718657806019,0.1,66447.0,66441.0,0.00944382]
[1718657806020,0.05099099,66446.0,66445.0,0.02]
[1718657806216,0.1,66447.0,66445.0,0.12496705]
[1718657806418,0.05097965,66446.0,66444.0,0.02]
[1718657806704,0.451494,66446.0,66445.0,0.14496643]
[1718657806910,0.602475,66446.0,66445.0,0.12496643]
[1718657808215,0.903471,66446.0,66445.0,0.12496643]
[1718657808635,1.262167,66446.0,66445.0,0.12496643]
[1718657808839,1.276167,66446.0,66445.0,0.12496643]
[1718657809048,0.975171,66446.0,66445.0,0.12496643]
[1718657809249,0.150509,66442.0,66438.0,0.02]
[1718657809541,0.602046,66440.0,66439.0,0.12497224]
[1718657809681,0.903538,66440.0,66439.0,0.12497224]
[1718657810225,0.451564,66436.0,66435.0,0.02]
[1718657810404,0.401044,66436.0,66435.0,0.12497724]
[1718657810608,0.551564,66436.0,66435.0,0.13341598]
[1718657811013,0.25052,66436.0,66435.0,0.13341598]
[1718657811410,0.90365466,66436.0,66435.0,0.13341598]
[1718657811807,0.90365466,66436.0,66435.0,0.12497724]
[1718657812011,0.90365466,66436.0,66435.0,0.14497724]
[1718657812218,0.15105266,66436.0,66435.0,0.14497724]
[1718657812569,0.30157266,66436.0,66435.0,0.15342184]
[1718657812741,0.63061366,66436.0,66435.0,0.15342184]
[1718657813143,0.63061366,66436.0,66435.0,0.14497724]
[1718657814006,0.63061366,66436.0,66435.0,0.12497724]
[1718657814579,0.17905266,66436.0,66435.0,0.14497724]
[1718657814781,0.07905266,66436.0,66435.0,0.14497724]
[1718657815079,0.07905266,66436.0,66435.0,0.15342332]
[1718657815662,0.07905266,66436.0,66435.0,0.30152332]
[1718657816438,0.22957266,66436.0,66435.0,0.30152332]
[1718657816637,0.32957266,66436.0,66435.0,0.30152332]
[1718657817101,0.17905266,66436.0,66435.0,0.30152332]
[1718657817317,0.32957266,66436.0,66435.0,0.30152332]
[1718657818392,0.63061366,66436.0,66435.0,0.33089402]
[1718657818611,0.63061366,66436.0,66435.0,0.32089402]
[1718657818612,1.20469566,66436.0,66435.0,0.32089402]
[1718657818835,0.90365466,66436.0,66435.0,0.32089402]
[1718657819032,0.91765466,66436.0,66435.0,0.31244794]
[1718657819443,0.91765466,66436.0,66435.0,0.32089203]
[1718657819652,0.91765466,66436.0,66435.0,0.32090896]
[1718657820344,0.91765466,66436.0,66435.0,0.13343004]
[1718657820607,0.93165466,66436.0,66435.0,0.13343004]
[1718657820778,0.93165466,66436.0,66435.0,0.12498595]
[1718657822134,0.17905266,66436.0,66435.0,0.14498595]
[1718657822289,0.07905266,66436.0,66435.0,0.14498595]
[1718657822495,0.22957266,66436.0,66435.0,0.1534604]
[1718657822698,0.63061366,66436.0,66435.0,0.1534604]
[1718657822907,0.19893439,66436.0,66435.0,0.7166041]
[1718657823117,0.17905266,66436.0,66435.0,0.78924912]
[1718657823535,0.17905266,66436.0,66435.0,0.71658871]
[1718657823743,0.07905266,66436.0,66435.0,0.69861773]
[1718657823935,0.06505266,66436.0,66435.0,0.69861773]
[1718657824359,0.07905266,66436.0,66435.0,0.69861773]
[1718657825184,0.06505266,66436.0,66435.0,0.69861773]
[1718657825360,0.06505266,66436.0,66435.0,0.71657746]
[1718657825592,0.07805266,66436.0,66435.0,0.67859467]
[1718657825797,0.06405266,66436.0,66435.0,0.69655444]
[1718657825922,0.16405266,66436.0,66435.0,0.69655444]
[1718657826280,0.17505266,66436.0,66435.0,0.49114254]
[1718657826419,0.16205266,66436.0,66435.0,0.49114254]
[1718657827033,0.31257266,66436.0,66435.0,0.49114254]
[1718657827240,0.16205266,66436.0,66435.0,0.51114254]
[1718657828125,0.1620751,66436.0,66435.0,0.51114254]
[1718657828335,0.0690751,66436.0,66435.0,0.51114254]
[1718657828526,0.1690751,66436.0,66435.0,0.51114254]
[1718657829599,0.0690751,66436.0,66435.0,0.51114254]
[1718657829841,0.1690751,66436.0,66435.0,0.51114254]
[1718657831414,0.0690751,66436.0,66435.0,0.51114254]
[1718657831614,0.06915641,66436.0,66435.0,0.51114254]
[1718657831836,0.16915641,66436.0,66435.0,0.51114254]
[1718657832899,0.06915641,66436.0,66435.0,0.51114254]
[1718657833165,0.06910342,66436.0,66435.0,0.51114217]
[1718657833525,0.17097529,66442.0,66435.0,0.51114217]
[1718657833526,0.1,66441.0,66440.0,0.02]
[1718657833906,0.15198064,66441.0,66440.0,0.02]
[1718657834305,0.15198064,66441.0,66440.0,0.02847445]
[1718657834668,0.05198064,66441.0,66440.0,0.02847445]
[1718657834870,0.06598064,66441.0,66440.0,0.02847445]
[1718657835027,0.07898064,66441.0,66440.0,0.02847445]
[1718657835449,0.07898064,66441.0,66440.0,0.07989639]
[1718657836049,0.17898064,66441.0,66440.0,0.07989639]
[1718657836255,0.17898064,66441.0,66440.0,0.02847445]
[1718657836502,0.07898064,66441.0,66440.0,0.54770333]
[1718657836768,0.07898064,66441.0,66440.0,0.55770333]
[1718657837001,0.027,66441.0,66440.0,0.55770333]
[1718657837206,0.027,66441.0,66440.0,0.68265884]
[1718657837374,0.027,66441.0,66440.0,0.7735697]
[1718657837938,0.027,66441.0,66440.0,0.9240807]
[1718657838151,0.013,66441.0,66440.0,0.7735697]
[1718657838552,0.008,66441.0,66440.0,0.7745697]
[1718657838928,0.013,66441.0,66440.0,0.7745697]
[1718657839562,0.013,66441.0,66440.0,0.77456374]
[1718657839987,0.008,66441.0,66440.0,0.76456374]
[1718657840359,0.01,66441.0,66440.0,0.76456374]
[1718657840799,0.002,66441.0,66440.0,0.77356374]
[1718657841214,0.008,66441.0,66440.0,0.77456374]
[1718657841417,0.008,66441.0,66440.0,0.68365288]
[1718657843534,0.008,66441.0,66440.0,0.67365288]
[1718657844081,0.008,66441.0,66440.0,0.68365302]
[1718657844335,0.008,66441.0,66440.0,0.98467602]
[1718657844534,0.008,66441.0,66440.0,1.13518702]
[1718657844736,0.008,66441.0,66440.0,1.26649879]
[1718657845268,0.008,66441.0,66440.0,0.80496479]
[1718657845780,0.002,66441.0,66440.0,0.95447579]
[1718657845984,0.004,66441.0,66440.0,0.95447579]
[1718657846194,0.002,66441.0,66440.0,0.96447579]
[1718657846366,0.002,66441.0,66440.0,0.96447021]
[1718657846601,0.002,66441.0,66440.0,2.07603921]
[1718657847014,0.002,66441.0,66440.0,2.17803921]
[1718657847549,0.04508048,66467.0,66466.0,0.01]
[1718657847754,0.49643748,66467.0,66466.0,0.02]
[1718657847955,0.49437944,66467.0,66466.0,0.04540559]
[1718657848186,0.49437944,66467.0,66466.0,0.03702]
[1718657848403,0.49437944,66467.0,66466.0,0.01702]
[1718657848564,0.16290989,66467.0,66466.0,0.03702]
[1718657849025,0.17690989,66467.0,66466.0,0.03802]
[1718657849189,0.92916189,66467.0,66466.0,0.001]
[1718657850486,0.94316189,66467.0,66466.0,0.001]
[1718657850907,1.0893367,66467.0,66466.0,0.001]
[1718657851985,1.04631426,66467.0,66466.0,0.001]
[1718657852177,0.74541326,66467.0,66466.0,0.021]
[1718657852488,0.29406226,66467.0,66466.0,0.365]
[1718657852691,0.14788745,66467.0,66466.0,0.4165461]
[1718657852828,0.04788745,66467.0,66466.0,0.42493169]
[1718657853029,0.04788745,66467.0,66466.0,0.54984419]
[1718657853248,0.04788745,66467.0,66466.0,0.42493169]
[1718657854142,0.04788745,66467.0,66466.0,0.54984508]
[1718657855534,0.04788745,66467.0,66466.0,0.55984508]
[1718657855735,0.04788745,66467.0,66466.0,0.54984508]
[1718657856623,0.028,66467.0,66466.0,0.54984508]
[1718657856825,0.028,66467.0,66466.0,0.70257396]
[1718657857401,0.04508048,66469.0,66466.0,0.70157396]
[1718657857626,0.04508048,66469.0,66467.0,0.2023355]
[1718657857834,0.04508048,66469.0,66468.0,0.14491339]
[1718657858253,0.04508048,66469.0,66468.0,0.15327333]
[1718657858881,0.05508048,66469.0,66468.0,0.46645021]
[1718657858998,0.023,66469.0,66468.0,0.55264984]
[1718657859196,0.023,66469.0,66468.0,0.40220184]
[1718657859845,0.01,66469.0,66468.0,0.39220184]